[Event "53rd Mongolian Women-ch 2023"]
[Site "Khovd"]
[Date "2023.05.22"]
[Round "2.1"]
[White "Udval, Enkhsaikhan"]
[Black "Enkhrii Enkh-Amgalan"]
[Result "0-1"]
[ECO "D85"]
[WhiteElo "1682"]
[BlackElo "1448"]
[Annotator "NA COMBH"]
[PlyCount "98"]
[EventDate "2023.05.22"]
[EventType "tourn"]
[EventCountry "MGL"]
[SourceTitle "playchess.com"]
[Source "ChessBase"]
[SourceQuality "1"]
[TimeControl "40/5400+30:1800+30"]

1. d4 {[%emt 0:00:02]} Nf6 {[%emt 0:00:05]} 2. c4 {[%emt 0:00:05]} g6 {[%emt 0:00:05]} 3. Nc3 {[%emt 0:00:03]} d5 {[%emt 0:00:05]} 4. cxd5 {[%emt 0:00:04]} Nxd5 {[%emt 0:00:04]} 5. e4 {[%emt 0:00:05]} Nxc3 {[%emt 0:00:31]} 6. bxc3 {[%emt 0:00:04]} Bg7 {[%emt 0:00:06]} 7. Be3 {[%emt 0:00:05]} c5 {[%emt 0:01:05]} 8. Rc1 {[%emt 0:00:13]} Qa5 {[%emt 0:01:51]} 9. Qd2 {[%emt 0:00:17]} Nd7 {[%emt 0:15:14]} 10. Nf3 {[%emt 0:09:05]} O-O {[%emt 0:07:33]} 11. Be2 {[%emt 0:13:15]} Nf6 {[%emt 0:08:28]} 12. Bd3 {[%emt 0:06:15]} e6 {[%emt 0:03:24]} 13. O-O {[%emt 0:05:21]} b6 {[%emt 0:11:48]} 14. Ne5 {[%emt 0:13:06]} Bb7 {[%emt 0:16:11]} 15. Nc4 {[%emt 0:20:34]} Qa4 {[%emt 0:00:18]} 16. f3 {[%emt 0:02:38]} Rfd8 {[%emt 0:04:01]} 17. e5 {[%emt 0:07:50]} Nd5 {[%emt 0:04:15]} 18. Nd6 {[%emt 0:03:44]} cxd4 {[%emt 0:04:01]} 19. cxd4 {[%emt 0:01:20]} Rxd6 {[%emt 0:01:26]} 20. Rc4 {[%emt 0:03:54]} Qa3 {[%emt 0:00:15]} 21. exd6 {[%emt 0:00:43]} Ba6 {[%emt 0:00:02]} 22. Bf2 {[%emt 0:06:51]} Bxc4 {[%emt 0:01:13]} 23. Bxc4 {[%emt 0:00:01]} Qxd6 {[%emt 0:00:04]} 24. Bb3 {[%emt 0:03:51]} Ne7 {[%emt 0:02:16]} 25. Rd1 {[%emt 0:00:37]} Rd8 {[%emt 0:02:39]} 26. Qe2 {[%emt 0:02:19]} Qb4 {[%emt 0:05:59]} 27. Qe4 {[%emt 0:00:58]} Nd5 {[%emt 0:01:47]} 28. Rd3 {[%emt 0:00:35]} Qb5 {[%emt 0:02:34]} 29. Rd2 {[%emt 0:00:29]} Nc3 {[%emt 0:01:47]} 30. Qc2 {[%emt 0:00:31]} Rc8 {[%emt 0:01:54]} 31. Qb2 {[%emt 0:00:00]} Nd5 {[%emt 0:00:42]} 32. Rc2 {[%emt 0:00:21]} Rd8 {[%emt 0:00:42]} 33. Qc1 {[%emt 0:00:30]} Bf6 {[%emt 0:00:41]} 34. g3 {[%emt 0:00:27]} Kg7 {[%emt 0:00:24]} 35. Kg2 {[%emt 0:00:26]} Rd7 {[%emt 0:01:00]} 36. Rc4 {[%emt 0:00:24]} Qa6 {[%emt 0:00:52]} 37. h4 {[%emt 0:00:44]} Qb7 {[%emt 0:00:53]} 38. g4 {[%emt 0:00:27]} Rc7 {[%emt 0:01:03]} 39. g5 {[%emt 0:00:08]} Be7 {[%emt 0:00:28]} 40. Bg3 {[%emt 0:00:00]} Rxc4 {[%emt 0:00:00]} 41. Bxc4 {[%emt 0:10:41]} Qc6 {[%emt 0:00:20]} 42. Qe1 {[%emt 0:03:06]} Qxc4 {[%emt 0:00:19]} 43. Qe5+ {[%emt 0:00:05]} f6 {[%emt 0:00:15]} 44. gxf6+ {[%emt 0:01:53]} Bxf6 {[%emt 0:00:10]} 45. Qd6 {[%emt 0:00:25]} Qxd4 {[%emt 0:00:42]} 46. Qd7+ {[%emt 0:00:46]} Ne7 {[%emt 0:00:17]} 47. Qxe6 {[%emt 0:00:08]} Nf5 {[%emt 0:00:20]} 48. Bf2 {[%emt 0:01:55]} Nxh4+ {[%emt 0:00:36]} 49. Bxh4 {[%emt 0:00:25]} Bxh4 {[%emt 0:00:09]} 0-1

[Event "53rd Mongolian Women-ch 2023"]
[Site "Khovd"]
[Date "2023.05.22"]
[Round "2.3"]
[White "Enkhsaran, Batsaikhan"]
[Black "Altantuya, Boldbaatar"]
[Result "1-0"]
[ECO "E04"]
[WhiteElo "1756"]
[BlackElo "2191"]
[Annotator "TA"]
[PlyCount "101"]
[EventDate "2023.05.22"]
[EventType "tourn"]
[EventCountry "MGL"]
[SourceTitle "playchess.com"]
[Source "ChessBase"]
[SourceQuality "1"]
[TimeControl "40/5400+30:1800+30"]

{[%evp 9,101,28,21,1,1,-7,20,15,9,-36,-31,-37,-33,-91,-23,-21,-27,-36,-31,-25,-22,-21,-16,-19,-8,-7,32,22,56,8,85,81,103,92,137,23,155,152,154,154,171,158,247,234,477,424,424,421,416,410,530,535,515,410,410,408,403,402,393,388,362,353,372,370,485,485,472,471,469,462,518,452,564,556,521,529,679,658,850,812,612,4697,4578,2421,5704,6095,6087,6070,6050,5894,5583,5443,1346,1213]} 1. d4 {[%emt 0:00:07]} Nf6 {[%emt 0:00:20]} 2. c4 {[%emt 0:00:13]} e6 {[%emt 0:00:13]} 3. g3 {[%emt 0:00:14]} d5 {[%emt 0:00:37]} 4. Nf3 {[%emt 0:00:24]} dxc4 {[%emt 0:00:31]} 5. Bg2 {[%emt 0:00:15]} Nbd7 {[%emt 0:00:38]} 6. Qc2 {[%emt 0:03:38][%mdl 1024] White has compensation. E04: Open Catalan: 5 Nf3.} b5 {[%emt 0:00:40]} 7. Ne5 {[%emt 0:04:01]} Nd5 {[%emt 0:00:22] [#]} 8. Nc6 $146 {[%emt 0:01:48] The position is equal.} ({Predecessor:} 8. O-O Nxe5 9. dxe5 c6 10. a4 Bb7 11. b3 cxb3 12. Qxb3 a6 13. Nd2 Be7 14. Bb2 {½-½ Prudnikova,E (2150)-Kim,A (2128) RUS Summer U16 Girls 2nd 2005 (3)}) 8... Nb4 {[%emt 0:00:33]} 9. Qc3 {[%emt 0:06:31]} Nxc6 {[%emt 0:02:57]} 10. Bxc6 {[%emt 0:00:18]} Rb8 {[%emt 0:04:40]} 11. d5 {[%emt 0:06:34]} (11. a4 $15) 11... Bb7 {[%emt 0:09:08]} (11... exd5 $1 $17 {White should prevent ...b4.} 12. Be3 Bb7 13. Qe5+ Qe7 14. Qxd5 Bxc6 15. Qxc6 Qb4+ 16. Nd2 Bc5 17. Qe4+ (17. Bxc5 Qxc5 18. Qe4+ Qe7 $17) 17... Kf8) 12. Bxb7 {[%emt 0:02:39]} Rxb7 {[%emt 0:00:08]} 13. dxe6 {[%emt 0:01:09]} fxe6 {[%emt 0:00:06]} 14. Qf3 {[%emt 0:01:10] Prevents Nf6.} Nc5 {[%emt 0:04:15] aiming for ...Qd5.} 15. Nc3 {[%emt 0:10:04] Against Qd5} b4 {[%emt 0:14:45]} 16. Qh5+ $1 {[%emt 0:02:48]} Kd7 {[%emt 0:01:23]} (16... g6 {looks sharper.} 17. Qe5 Rg8 18. Ne4 Bd6) 17. Nd1 {[%emt 0:03:37]} Kc8 {[%emt 0:12:34]} 18. O-O $1 {[%emt 0:03:58]} g6 {[%emt 0:10:13]} 19. Qg4 {[%emt 0:03:19]} (19. Qe5 $14 {should be considered.} Bd6 20. Qd4) 19... c3 {[%emt 0:00:34]} 20. bxc3 $16 {[%emt 0:02:28]} Bg7 {[%emt 0:10:29]} 21. Be3 {[%emt 0:04:21]} Na4 {[%emt 0:05:37] [#]} 22. Qxe6+ {[%emt 0:11:31]} ({Only move:} 22. a3 $1 $16) 22... Kb8 {[%emt 0:00:07]} (22... Qd7 $1 $11 {remains equal.} 23. Qxd7+ Kxd7) 23. Rb1 {[%emt 0:03:35] Black must now prevent Qa6.} Nxc3 {[%emt 0:03:29]} 24. Nxc3 {[%emt 0:00:44]} Bxc3 {[%emt 0:00:12] [#]} 25. a3 $1 {[%emt 0:04:59][%mdl 512]} Qd6 {[%emt 0:07:56] [#] Inhibits Rfd1.} (25... Qe8 $16 26. Qb3 Qe4) (25... Bd4 26. Bxd4) 26. Qc4 $1 $18 {[%emt 0:03:39]} a5 $2 {[%emt 0:01:43]} (26... Rd8 {was necessary.} 27. Bc5 Qf6) 27. Bc5 {[%emt 0:01:20]} Qf6 {[%emt 0:06:42]} 28. axb4 {[%emt 0:00:25]} axb4 {[%emt 0:00:13]} 29. Bxb4 {[%emt 0:00:44]} Bd4 {[%emt 0:00:32]} 30. e3 {[%emt 0:01:27]} Bb2 {[%emt 0:01:16]} 31. Qb3 {[%emt 0:02:01]} c5 {[%emt 0:01:41]} 32. Qxb2 {[%emt 0:00:07]} Qxb2 {[%emt 0:00:10]} 33. Rxb2 {[%emt 0:00:04]} cxb4 {[%emt 0:00:31][%mdl 4096] Endgame KRR-KRR} 34. Rfb1 {[%emt 0:00:07]} Kc7 {[%emt 0:00:37]} 35. Rxb4 {[%emt 0:00:09]} Ra7 {[%emt 0:00:25]} 36. Rd4 {[%emt 0:01:36]} Ra2 {[%emt 0:00:44]} 37. Rc1+ {[%emt 0:00:22] White is clearly winning.} Kb6 {[%emt 0:00:40]} 38. Rb4+ {[%emt 0:00:22]} Ka7 {[%emt 0:00:55]} 39. Rcb1 {[%emt 0:01:08]} Rf8 {[%emt 0:00:30]} 40. R4b2 {[%emt 0:00:00][%cal Rb2a2]} Ra3 {[%emt 0:00:00]} 41. Rb7+ {[%emt 0:02:45]} Ka8 {[%emt 0:00:34]} 42. Rxh7 {[%emt 0:00:40]} Ra2 {[%emt 0:00:35]} 43. Rh4 {[%emt 0:02:56]} g5 {[%emt 0:01:39]} 44. Rhb4 {[%emt 0:01:11]} Rfxf2 {[%emt 0:02:07] [#]} 45. Ra4+ $3 {[%emt 0:00:09][%mdl 576] Deflection} Rxa4 {[%emt 0:00:08]} 46. Kxf2 {[%emt 0:00:12] KR-KR} g4 {[%emt 0:00:51]} 47. Rb2 {[%emt 0:01:07]} Ka7 {[%emt 0:01:37]} 48. Ke2 {[%emt 0:03:18]} Ra3 {[%emt 0:00:24]} 49. e4 {[%emt 0:02:08]} Ka6 {[%emt 0:00:51]} 50. e5 {[%emt 0:00:26]} Ra5 {[%emt 0:00:35]} 51. Ke3 {[%emt 0:00:13] A cool game by Enkhsaran.   Weighted Error Value: White=0.15 (very precise) /Black=0.44} 1-0

[Event "53rd Mongolian Women-ch 2023"]
[Site "Khovd"]
[Date "2023.05.22"]
[Round "2.4"]
[White "Margadgua Erdenebayar"]
[Black "Bayarmaa, Bayarjargal"]
[Result "0-1"]
[ECO "B90"]
[WhiteElo "1934"]
[BlackElo "2167"]
[Annotator "TA"]
[PlyCount "98"]
[EventDate "2023.05.22"]
[EventType "tourn"]
[EventCountry "MGL"]
[SourceTitle "playchess.com"]
[Source "ChessBase"]
[SourceQuality "1"]
[TimeControl "40/5400+30:1800+30"]

{[%evp 12,98,38,0,54,0,29,0,31,34,71,83,77,62,78,0,0,0,0,0,7,0,0,0,4,14,2,0,7,0,0,0,0,-36,-31,-65,-52,-60,-70,-110,-82,-112,-96,-111,-107,-103,-105,-112,-112,-134,-91,-276,-276,-208,-203,-239,-246,-288,-287,-471,-446,-668,-595,-586,-536,-559,-569,-713,-702,-699,-670,-691,-688,-952,-689,-680,-625,-29972,-29972,-29971,-29971,-6528,-1111,-29996,-29997,-29997,-29998,-29998,-29999]} 1. e4 {[%emt 0:00:04]} c5 {[%emt 0:00:05]} 2. Nf3 {[%emt 0:00:07]} d6 {[%emt 0:00:12]} 3. d4 {[%emt 0:00:11]} cxd4 {[%emt 0:00:06]} 4. Nxd4 {[%emt 0:00:07]} Nf6 {[%emt 0:00:05]} 5. Nc3 {[%emt 0:00:08]} a6 {[%emt 0:00:27]} 6. h3 {[%emt 0:00:38]} e5 {[%emt 0:01:49]} 7. Nb3 {[%emt 0:00:12]} b5 {[%emt 0:01:40] 7...Be7 is becoming the main line. B90: Sicilian Najdorf: Unusual White 6th moves, 6 Be3 Ng4 and 6 Be3 e5.} ({Black should play} 7... Be7 $11) 8. Be3 {[%emt 0:04:06]} ({White should try} 8. Bg5 $14) 8... Be6 {[%emt 0:04:30]} (8... Bb7 $5 {[%cal Rf6e4]}) 9. Qf3 {[%emt 0:10:28] [#]} Nc6 $146 {[%emt 0:06:39] The position is equal.} ({Predecessor:} 9... Nbd7 10. g4 h6 11. O-O-O Rc8 12. Nd5 Bxd5 13. exd5 Nb6 14. Kb1 Nc4 15. Bd3 Be7 {1-0 Jakubowski,K (2475)-Simonian,H (2431) Titled Tuesday intern op 31st Jan Early blitz 2023 (4)}) 10. O-O-O {[%emt 0:01:24]} Qc7 {[%emt 0:00:16]} 11. g4 {[%emt 0:01:52]} h6 {[%emt 0:06:12]} 12. Kb1 {[%emt 0:07:13]} Rc8 {[%emt 0:01:27]} 13. g5 {[%emt 0:10:52]} (13. Qg2 $16) 13... hxg5 $11 {[%emt 0:01:38]} 14. Bxg5 {[%emt 0:00:09]} Be7 {[%emt 0:01:32]} 15. Rg1 {[%emt 0:04:30]} Na5 {[%emt 0:20:35]} 16. Nxa5 {[%emt 0:09:01]} Qxa5 {[%emt 0:00:48]} 17. Nd5 {[%emt 0:00:09]} Bxd5 {[%emt 0:00:47]} (17... Qa4 18. b3 (18. Bxf6 $2 Qxc2+ 19. Ka1 Qc1+ {[%mdl 64] Back Rank} 20. Rxc1 Rxc1#) 18... Qa3 19. Bxf6 (19. Nxf6+ gxf6 20. Bxf6 Bxf6 $16) 19... gxf6 20. Nxf6+ Kd8 21. Nd5 $16) 18. exd5 {[%emt 0:00:07]} Qa4 {[%emt 0:04:34]} 19. Qf5 {[%emt 0:06:20]} Rc7 {[%emt 0:02:53]} 20. Bxf6 {[%emt 0:02:57]} Bxf6 $40 {[%emt 0:02:31][%mdl 128] Black mounts an attack.} 21. Rg4 {[%emt 0:00:29]} b4 {[%emt 0:08:44]} 22. Qd3 {[%emt 0:09:48]} a5 {[%emt 0:13:40][%cal Ba6a5,Ba5a4,Ba4a3][%mdl 32]} 23. Rc4 {[%emt 0:07:37]} Qd7 {[%emt 0:00:34]} 24. Rxc7 {[%emt 0:09:15]} Qxc7 {[%emt 0:00:06]} 25. Be2 {[%emt 0:00:24] White is weak on the dark squares} Ke7 {[%emt 0:01:35][%cal Be8e7,Be7f8,Bf8g7][%mdl 32]} 26. Bg4 {[%emt 0:05:22]} Rb8 {[%emt 0:00:49]} 27. Rf1 {[%emt 0:00:44]} a4 {[%emt 0:01:49]} 28. Qe4 {[%emt 0:05:09]} Kf8 {[%emt 0:03:56]} 29. Be2 {[%emt 0:02:19]} a3 {[%emt 0:00:18]} 30. Bc4 {[%emt 0:00:24]} g6 {[%emt 0:04:28]} 31. f4 $2 {[%emt 0:02:59] Loses the game.} (31. h4 $17) 31... exf4 $19 {[%emt 0:00:44]} 32. Qxf4 {[%emt 0:00:30]} Be5 {[%emt 0:02:47]} 33. Qg4 {[%emt 0:00:01][%cal Og4g6] [#]} Kg7 {[%emt 0:02:02]} (33... Bxb2 34. Qxg6 Re8 35. Qh5 $17 (35. Qh6+ Bg7 $15)) 34. h4 {[%emt 0:00:01] [#]} Rh8 {[%emt 0:00:24]} ({Worse is} 34... Bxb2 35. h5 $15) 35. Rf3 $2 {[%emt 0:01:47]} (35. Bb3) 35... Bxb2 {[%emt 0:00:48] aiming for ...Qe7.} (35... axb2 $2 {is the wrong capture.} 36. Rf1 $19) 36. Rh3 {[%emt 0:00:02]} (36. Bb5 $142) 36... Qe7 {[%emt 0:00:27] ( -> ...Qe1+)} 37. Qe2 {[%emt 0:00:38] Repels Qe1+} Qd7 {[%emt 0:01:29]} 38. Rh1 {[%emt 0:00:30]} Rh5 {[%emt 0:00:40]} 39. Qe1 {[%emt 0:00:43]} Bc3 {[%emt 0:00:36]} 40. Qg3 {[%emt 0:00:00]} Qe7 {[%emt 0:00:00] ...Qe4 would be deadly.} 41. Bd3 {[%emt 0:12:04] Wards off Qe4} Bf6 {[%emt 0:00:48][%cal Rf6h4]} 42. Rg1 {[%emt 0:00:32]} Bxh4 {[%emt 0:00:26]} (42... Rxh4 $2 {loses.} 43. Bxg6 Qe5 44. Bf5+ Kf8 45. Qxe5 dxe5 46. d6 $19) 43. Qf4 {[%emt 0:02:29]} Bf6 {[%emt 0:03:20] Strongly threatening ...Rh4.} 44. Qxb4 {[%emt 0:06:35]} Qe5 {[%emt 0:03:53][%csl Gf6][%cal Re5a1]} 45. c3 {[%emt 0:01:05]} Qe3 {[%emt 0:00:12]} 46. Rd1 {[%emt 0:01:04]} Rxd5 {[%emt 0:00:24]} (46... Rh1 $142 47. Bf1 Rxf1 {[%mdl 64] Remove Defender, Decoy} 48. Rxf1 Qd3+ 49. Kc1 Qxf1+ 50. Kc2 Qe2+ 51. Kb3 Qb2+ 52. Ka4 Qxa2 53. c4 Bb2 54. Kb5 Qb1 55. Kc6 a2 56. c5 a1=Q 57. Kb7 Kf8 58. Kc7 Bd4 59. Qxb1 Qxb1 60. Kc8 Bxc5 61. Kc7 Ke7 62. Kc8 Bd4 63. Kc7 Ba7 64. Kc8 Qb8#) 47. Bc2 {[%emt 0:01:38]} Rxd1+ {[%emt 0:00:14][%mdl 64] Remove Defender, Deflection, Back Rank. Black mates.} 48. Bxd1 {[%emt 0:00:03]} Qd3+ {[%emt 0:00:06]} 49. Kc1 {[%emt 0:00:09]} Bg5+ {[%emt 0:00:12] Weighted Error Value: White=0.61/Black=0.29 (precise)} 0-1

[Event "53rd Mongolian Women-ch 2023"]
[Site "Khovd"]
[Date "2023.05.22"]
[Round "2.5"]
[White "Enkhbolor Nyamdavaa"]
[Black "Amin-Erdene, Bayanmunkh"]
[Result "1-0"]
[ECO "C16"]
[WhiteElo "1699"]
[BlackElo "1620"]
[Annotator "NA COMBH"]
[PlyCount "55"]
[EventDate "2023.05.22"]
[EventType "tourn"]
[EventCountry "MGL"]
[SourceTitle "playchess.com"]
[Source "ChessBase"]
[SourceQuality "1"]
[TimeControl "40/5400+30:1800+30"]

1. e4 {[%emt 0:00:02]} e6 {[%emt 0:00:07]} 2. d4 {[%emt 0:00:04]} d5 {[%emt 0:00:07]} 3. Nc3 {[%emt 0:00:06]} Bb4 {[%emt 0:00:11]} 4. e5 {[%emt 0:00:06]} b6 {[%emt 0:00:10]} 5. a3 {[%emt 0:00:44]} Bf8 {[%emt 0:00:14]} 6. Bb5+ {[%emt 0:00:38]} c6 {[%emt 0:06:06]} 7. Ba4 {[%emt 0:00:10]} Ne7 {[%emt 0:06:27]} 8. Nf3 {[%emt 0:04:54]} Nf5 {[%emt 0:05:26]} 9. Ne2 {[%emt 0:01:22]} Be7 {[%emt 0:05:00]} 10. c3 {[%emt 0:01:27]} O-O {[%emt 0:08:11]} 11. Bc2 {[%emt 0:05:15]} c5 {[%emt 0:01:49]} 12. h4 {[%emt 0:03:36]} g6 {[%emt 0:28:17]} 13. h5 {[%emt 0:04:11]} Ba6 {[%emt 0:02:28]} 14. hxg6 {[%emt 0:11:32]} fxg6 {[%emt 0:02:26]} 15. Nf4 {[%emt 0:01:18]} Bc8 {[%emt 0:04:32]} 16. Nh3 {[%emt 0:06:14]} Rf7 {[%emt 0:14:09]} 17. Nhg5 {[%emt 0:06:30]} Bxg5 {[%emt 0:00:22]} 18. Nxg5 {[%emt 0:00:20]} Rg7 {[%emt 0:00:33]} 19. g4 {[%emt 0:02:42]} Ne7 {[%emt 0:00:17]} 20. Qf3 {[%emt 0:00:36]} Qd7 {[%emt 0:10:14]} 21. Nxh7 {[%emt 0:05:22]} Rxh7 {[%emt 0:00:11]} 22. Rxh7 {[%emt 0:00:20]} Kxh7 {[%emt 0:00:02]} 23. Qf7+ {[%emt 0:00:14]} Kh8 {[%emt 0:00:01]} 24. Bh6 {[%emt 0:00:41]} Nf5 {[%emt 0:01:03]} 25. Qf8+ {[%emt 0:01:52]} Kh7 {[%emt 0:00:02]} 26. gxf5 {[%emt 0:00:08]} exf5 {[%emt 0:02:35]} 27. O-O-O {[%emt 0:00:28]} g5 {[%emt 0:00:48]} 28. Rh1 {[%emt 0:00:43]} 1-0

[Event "53rd Mongolian Women-ch 2023"]
[Site "Khovd"]
[Date "2023.05.22"]
[Round "2.6"]
[White "Khuslen, Erdenebayar"]
[Black "Bayasgalan, Khishigbaatar"]
[Result "1-0"]
[ECO "A40"]
[WhiteElo "1835"]
[BlackElo "1811"]
[Annotator "NA COMBH"]
[PlyCount "59"]
[EventDate "2023.05.22"]
[EventType "tourn"]
[EventCountry "MGL"]
[SourceTitle "playchess.com"]
[Source "ChessBase"]
[SourceQuality "1"]
[TimeControl "40/5400+30:1800+30"]

1. d4 {[%emt 0:00:14]} e6 {[%emt 0:01:17]} 2. c4 {[%emt 0:01:13]} b6 {[%emt 0:01:47]} 3. Nc3 {[%emt 0:01:56]} Bb7 {[%emt 0:01:04]} 4. e4 {[%emt 0:04:42]} Bb4 {[%emt 0:01:27]} 5. f3 {[%emt 0:00:30]} f5 {[%emt 0:07:17]} 6. Bd3 {[%emt 0:11:18]} Bxc3+ {[%emt 0:00:23]} 7. bxc3 {[%emt 0:00:02]} fxe4 {[%emt 0:00:12]} 8. fxe4 {[%emt 0:00:28]} Bxe4 {[%emt 0:00:24]} 9. Qh5+ {[%emt 0:00:17]} g6 {[%emt 0:02:08]} 10. Qe5 {[%emt 0:00:41]} Bxg2 {[%emt 0:13:39]} 11. Qxh8 {[%emt 0:00:58]} Qh4+ {[%emt 0:00:28]} 12. Kd1 {[%emt 0:01:22]} Kf8 {[%emt 0:04:57]} 13. Ba3+ {[%emt 0:09:03]} d6 {[%emt 0:00:47]} 14. Kc2 {[%emt 0:00:23]} Nd7 {[%emt 0:18:59]} 15. Ne2 {[%emt 0:06:07]} Kf7 {[%emt 0:02:31]} 16. Rhg1 {[%emt 0:16:30]} Be4 {[%emt 0:02:56]} 17. Rxg6 {[%emt 0:03:04]} Bxg6 {[%emt 0:11:33]} 18. Bxg6+ {[%emt 0:00:07]} Kxg6 {[%emt 0:01:30]} 19. Rg1+ {[%emt 0:01:55]} Kf5 {[%emt 0:00:07]} 20. Ng3+ {[%emt 0:10:19]} Kf4 {[%emt 0:03:34]} 21. Rf1+ {[%emt 0:00:29]} Kg4 {[%emt 0:00:39]} 22. Qg7+ {[%emt 0:00:12]} Qg5 {[%emt 0:02:05]} 23. Qxd7 {[%emt 0:00:39]} Qg6+ {[%emt 0:03:13]} 24. Kb2 {[%emt 0:00:31]} Re8 {[%emt 0:01:03]} 25. Rf7 {[%emt 0:02:32]} Nf6 {[%emt 0:08:07]} 26. Rxf6 {[%emt 0:00:15]} Qxf6 {[%emt 0:00:01]} 27. Qxe8 {[%emt 0:00:08]} Qf2+ {[%emt 0:00:04]} 28. Kb3 {[%emt 0:00:15]} Qe1 {[%emt 0:03:47]} 29. Qh5+ {[%emt 0:00:14]} Kf4 {[%emt 0:00:02]} 30. Bc1+ {[%emt 0:00:07]} 1-0